Cogmind - Beta 14 @@@ ROGUE MODE // 2024.09.08 @ 16:27:37 Player: aoemica Result: Self-destructed Performance ------------- Evolutions (8) 4000 Regions Visited (9) 1800 Robots Destroyed (274) 1370 Value Destroyed (11856) 11856 Prototype IDs (18) 360 Alien Tech Used (0) 0 Bonus (2925) 2925 TOTAL SCORE: 22311 Bonus ------- High Alert Combat Kills 2925 Cogmind --------- Core Integrity 1137/1450 Matter 101/300 Energy 340/340 System Corruption 26% Temperature Warm (123) Movement Immobile (Siege) Location -2/Research Parts ------- > --- POWER (2) -------- Particle Reactor > --- PROPULSION (6) --- Armored Medium Treads Heavy Siege Treads > --- UTILITY (10) ----- Advanced Heat Sink High-capacity Storage Unit Enhanced Optical Array Advanced Terrain Scan Processor Improved Salvage Targeting Computer Advanced Weapon Cycler Graphene Brace > --- WEAPON (5) ------- Heavy Laser Compact Mass Driver Compact Mass Driver > --- INVENTORY (20) --- Micro Antimatter Reactor Light Quantum Reactor Advanced Heat Sink Advanced Coolant Injector Matter Compressor (250) Long-range Terrain Scanner Seismic Detector Long-range Tractor Beam Matter Neutralizer Fusion Bomb Launcher Peak State ------------ > --- POWER ------------ Quantum Reactor Light Quantum Reactor > --- PROPULSION ------- Heavy Siege Treads Heavy Siege Treads Biometal Heavy Treads > --- UTILITY ---------- Advanced Heat Sink Advanced Cooling System High-capacity Storage Unit Enhanced Optical Array Advanced Terrain Scan Processor Advanced Weapon Cycler Improved Transmission Jammer Improved Shield Generator Advanced Drone Bay > --- WEAPON ----------- Coil Gun KE Penetrator KE Penetrator Railgun Compact Mass Driver > --- INVENTORY -------- Particle Reactor Micro Antimatter Reactor Armored Medium Treads Heavy Siege Treads Advanced Coolant Injector Matter Compressor Long-range Terrain Scanner Seismic Detector Improved Salvage Targeting Computer Heavy Armor Plating Graphene Brace Advanced System Shield Long-range Tractor Beam Matter Neutralizer Railgun Railgun Compact Mass Driver Fusion Bomb Launcher [Rating: 160] Favorites ----------- Power Heavy Ion Engine Engine Heavy Ion Engine Reactor Cold Fusion Reactor Propulsion Light Treads Treads Light Treads Leg Aluminum Leg Utility High-capacity Storage Unit Device Seismic Detector Storage High-capacity Storage Unit Processor Advanced Targeting Computer Hackware Hacking Suite Protection Improved Heavy Armor Plating Weapon Minigun Energy Gun Heavy Laser Energy Cannon Nova Cannon Ballistic Gun Minigun Ballistic Cannon Hypervelocity Gauss Cannon Launcher Mini Grenade Launcher Special Melee Weapon Datajack Build | -11 -10 -9 -8 -7 -6 -5 -4 -3 -2 ------- Run | Yrd Mat Mat Mat Fac Fac Fac Fac Res Res Slots Evolved 16 | . . 2 2 2 2 2 2 2 2 Power 1 | . . . . . . . 1 . . Propulsion 4 | . . . 1 1 . . . 1 1 Utility 8 | . . 1 1 1 1 2 1 1 . Weapon 3 | . . 1 . . 1 . . . 1 Parts Attached 400 | 3 3 14 24 25 30 51 23 119 108 Power 19 | . 1 1 1 . 1 . 1 6 8 Engine 3 | . 1 1 1 . . . . . . Core . | . . . . . . . . . . Reactor 16 | . . . . . 1 . 1 6 8 Propulsion 46 | 2 . 3 7 5 1 9 . 15 4 Treads 46 | 2 . 3 7 5 1 9 . 15 4 Leg . | . . . . . . . . . . Wheel . | . . . . . . . . . . Hover . | . . . . . . . . . . Flight . | . . . . . . . . . . Utility 237 | 1 2 2 7 9 24 28 14 78 72 Device 202 | 1 1 1 3 5 16 21 12 74 68 Storage 2 | . 1 . . . 1 . . . . Processor 10 | . . . 1 2 3 . 1 2 1 Hackware 4 | . . . . . 1 2 . . 1 Protection 19 | . . 1 3 2 3 5 1 2 2 Artifact . | . . . . . . . . . . Weapon 98 | . . 8 9 11 4 14 8 20 24 Energy Gun 4 | . . 1 . . . . . . 3 Energy Cannon 4 | . . . . 1 . . . 2 1 Ballistic Gun 62 | . . 7 8 7 3 10 5 8 14 Ballistic Cannon 22 | . . . . . . 4 3 10 5 Launcher 4 | . . . 1 2 . . . . 1 Special Weapon . | . . . . . . . . . . Impact Weapon . | . . . . . . . . . . Slashing Weapon . | . . . . . . . . . . Piercing Weapon . | . . . . . . . . . . Special Melee Weapon 2 | . . . . 1 1 . . . . Unidentified Prototypes 5 | . . 2 . . 1 . . 2 . Parts Lost 33 | . 1 . 2 . . 3 . 3 24 Power 3 | . . . . . . . . 1 2 Propulsion 4 | . . . . . . 1 . . 3 Utility 12 | . 1 . 1 . . 2 . 1 7 Weapon 14 | . . . 1 . . . . 1 12 Highest Loss Streak 11 | . 1 . 1 . . 3 . 3 11 To Critical Strikes . | . . . . . . . . . . Average Slot Usage (%) 96 | . 99 100 98 99 100 97 99 93 83 Engine 4 | . 14 11 9 7 3 . . . . Reactor 3 | . . . . . 2 5 10 8 7 Treads 23 | . 28 22 26 30 26 20 21 21 15 Device 14 | . 13 15 8 5 10 17 25 19 22 Storage 7 | . 14 11 9 7 6 5 5 4 4 Processor 11 | . . . 7 21 20 17 15 13 8 Protection 4 | . . 6 10 2 2 4 . 4 2 Ballistic Gun 20 | . 28 32 26 22 26 21 18 4 13 Ballistic Cannon 3 | . . . . . . 1 2 13 7 Peak Build Rating 160 | 7 10 19 26 33 47 87 99 135 160 Average Rating 61 | 6 8 16 23 30 42 65 89 117 149 On Entrance 44 | 6 7 10 19 25 31 44 82 88 133 Naked Turns . | . . . . . . . . . . Heaviest Build 136 | 14 49 63 65 63 77 101 114 134 136 Greatest Support 215 | 40 40 40 60 83 83 117 103 167 215 Greatest Overweight (x) 1 | . 1 1 1 . . 1 1 1 . Average Overweight (x) . | . . 1 1 . . . . . . Largest Inventory Capacity 20 | 8 20 20 20 20 20 20 20 20 20 Average Capacity 19 | 8 14 20 20 20 20 20 20 20 20 Most Carried 20 | 6 19 20 20 20 20 20 20 20 20 Average Carried 18 | 2 11 19 19 19 19 19 19 19 19 Final Capacity 20 | 8 20 20 20 20 20 20 20 20 20 Final Carried 20 | 3 18 20 20 20 20 20 20 20 10 Class Distribution -------------------- 32% | Scavenger-Tank 14% | Gunner 14% | Scavenger-Skirmisher 12% | Mutant 12% | Scavenger-Gunner 11% | Tank Dominant Class ---------------- Mutant | -10/Materials Tank | -9/Materials Scavenger-Tank | -8/Materials Gunner | -7/Factory Scavenger-Gunner | -6/Factory Scavenger-Tank | -5/Factory Scavenger-Gunner | -4/Factory Scavenger-Skirmisher | -3/Research Scavenger-Skirmisher | -2/Research Resources | -11 -10 -9 -8 -7 -6 -5 -4 -3 -2 ----------- Run | Yrd Mat Mat Mat Fac Fac Fac Fac Res Res Matter Collected 15636 | 262 314 601 1165 573 1248 1970 1173 3919 4411 Remotely 6762 | . . . . 264 594 351 499 2234 2820 Salvage Created 16727 | 150 626 733 1327 590 1280 1880 808 4627 4706 Parts 821 | 14 55 46 78 42 53 67 51 200 215 Haulers Intercepted 18 | . 2 5 2 1 . 3 . 5 . Recyclers Shooed 27 | 1 . . 2 1 5 7 2 6 3 Parts Field Recycled . | . . . . . . . . . . Retrieved Matter . | . . . . . . . . . . Parts Self-Destructed . | . . . . . . . . . . Prevented . | . . . . . . . . . . Kills | -11 -10 -9 -8 -7 -6 -5 -4 -3 -2 ------- Run | Yrd Mat Mat Mat Fac Fac Fac Fac Res Res Combat Hostiles Destroyed 179 | . 14 11 17 6 8 15 7 46 55 Melee 1 | . . . . . . . . . 1 Guns 115 | . 14 11 12 4 8 12 3 8 43 Cannons 53 | . . . . . . 3 4 38 8 AOE 10 | . . . 5 2 . . . . 3 Classes Destroyed 20 | 2 6 1 3 1 1 2 1 1 2 Worker 8 | . 2 . 1 . . . . 2 3 Builder 10 | . . . 2 2 . . 1 2 3 Tunneler 9 | 5 . . 3 . . 1 . . . Hauler 18 | . 2 5 2 1 . 3 . 5 . Recycler 29 | 1 1 1 3 1 6 4 2 6 4 Carrier 1 | . . . . . . . . 1 . Mechanic 2 | . . . . . . . 1 1 . Operator 4 | . 2 . . 1 1 . . . . Watcher 14 | . 3 2 4 2 1 . 1 . 1 Swarmer 24 | . 9 3 . . 3 1 . 3 5 Saboteur 1 | . . . . . . . . . 1 Grunt 71 | . 5 6 11 3 . 3 3 20 20 Brawler 7 | . . . 1 . . . 1 2 3 Duelist 4 | . . . 1 . . . . 1 2 Protector 1 | . . . . . . . . . 1 Sentry 18 | . . 2 4 1 3 1 1 4 2 Specialist 6 | . . . . . . 4 . . 2 Hunter 10 | . . . . . 1 1 . 2 6 Programmer 36 | . . . . 2 1 4 2 14 13 Heavy 1 | . . . . . . 1 . . . Best Kill Streak 14 | 4 4 3 9 4 6 4 6 6 14 Combat Bots Only 12 | . 3 3 6 3 3 4 4 6 12 Max Kills in Single Turn 5 | 1 1 2 3 3 2 1 2 5 3 Gunslinging 1 | . . 1 . . . . . . . Exploded 3 | . . . 3 2 . . . . 3 Melee 1 | . . . . . . . . . 1 Uniques/NPCs Destroyed . | . . . . . . . . . . Combat | -11 -10 -9 -8 -7 -6 -5 -4 -3 -2 -------- Run | Yrd Mat Mat Mat Fac Fac Fac Fac Res Res Hostile Shots Fired 1203 | . 106 24 81 44 120 149 34 180 465 Missed 321 | . 32 9 25 22 50 36 12 44 91 Damage Taken 14289 | . 598 202 952 218 570 1949 341 2170 7289 Core 858 | . 161 36 45 53 35 111 40 64 313 Absorbed by Shields 2746 | . . . . . 222 170 124 575 1655 Reduced by Siege Mode 1455 | . . . . . . 88 . 110 1257 Regen/Repaired (Parts) 646 | . . . 143 89 102 . 312 . . Core Remaining (%) 87 | 100 35 91 91 92 95 88 96 95 . Volleys Fired 661 | 11 71 37 72 24 63 90 29 112 152 Largest 5 | 2 2 3 3 3 4 4 4 4 5 Hottest 253 | 40 40 69 73 78 101 218 218 218 253 Shots Fired 2120 | 22 142 111 202 70 216 276 114 394 573 Gun 1668 | 22 142 111 196 68 216 241 84 116 472 Cannon 443 | . . . . . . 35 30 278 100 Launcher 9 | . . . 6 2 . . . . 1 Special . | . . . . . . . . . . Kinetic 2092 | 22 142 111 196 68 216 276 114 390 557 Thermal 19 | . . . . . . . . 4 15 Explosive 9 | . . . 6 2 . . . . 1 Electromagnetic . | . . . . . . . . . . Robot Hit Streak 34 | 4 9 32 20 12 18 20 16 20 34 Robot Miss Streak 6 | 3 3 6 3 3 6 3 6 4 3 Penetration Max 3 | . . . . . 1 1 1 3 2 Secondary Targets 25 | . 5 2 2 . 1 1 . . 14 Max Gunslinging Chain 1 | . 1 1 1 . 1 1 . . 1 Shots Hit Robots 1375 | 12 91 62 128 47 144 195 74 251 371 Core Hits 600 | 8 40 27 63 22 48 68 30 128 166 Critical Kills 86 | . . . . . . 5 7 58 16 Critical Parts Destroyed 122 | . 2 . 1 1 . 21 9 64 24 Critical Strikes 216 | . 2 . 1 1 . 26 16 129 41 Destroy 215 | . 2 . 1 1 . 26 16 129 40 Blast 1 | . . . . . . . . . 1 Melee Attacks 2 | . . . . 1 1 . . . . Impact . | . . . . . . . . . . Slashing . | . . . . . . . . . . Piercing . | . . . . . . . . . . Sneak Attacks 1 | . . . . 1 . . . . . Combat Hostiles . | . . . . . . . . . . Follow-up Attacks . | . . . . . . . . . . Damage Inflicted 27807 | 138 1061 980 2692 991 2344 3091 1327 4245 10938 Guns 21757 | 138 1051 980 2054 785 2333 2681 957 1348 9430 Cannons 4453 | . . . . . . 363 323 2806 961 Explosions 1232 | . . . 571 206 . . . . 455 Melee . | . . . . . . . . . . Ramming 365 | . 10 . 67 . 11 47 47 91 92 Kinetic 25899 | 138 1051 980 2054 785 2333 3044 1280 4154 10080 Thermal 311 | . . . . . . . . . 311 Explosive 1232 | . . . 571 206 . . . . 455 Electromagnetic . | . . . . . . . . . . Impact . | . . . . . . . . . . Slashing . | . . . . . . . . . . Piercing . | . . . . . . . . . . Highest Corruption 26 | . . . . 3 . 4 . 10 26 Average Corruption 4 | . . . . 2 . 2 . 4 8 Corruption Purged . | . . . . . . . . . . Corruption Blocked . | . . . . . . . . . . Effects 121 | . . . . 16 . 9 . 47 49 Message Errors 21 | . . . . 4 . 2 . 9 6 Matter Fused 27 | . . . . 3 . 2 . 8 14 Heat Flow Errors 10 | . . . . 2 . 1 . 4 3 Energy Discharges 11 | . . . . 2 . 1 . 4 4 Parts Rejected 1 | . . . . . . . . . 1 Data Loss (minor) 19 | . . . . 1 . 1 . 14 3 Data Loss (major) 8 | . . . . 2 . . . 4 2 Misfires 2 | . . . . . . . . 2 . Alerts 2 | . . . . 1 . . . 1 . Misdirections 1 | . . . . . . . . 1 . Weapon Failures 19 | . . . . 1 . 2 . . 16 Overload Shots . | . . . . . . . . . . Overflow Damage 49 | . . . 11 . . 1 5 1 31 Projectiles 22 | . . . . . . 1 . 1 20 Explosions 18 | . . . 11 . . . . . 7 Melee 9 | . . . . . . . 5 . 4 Knockbacks 56 | . . . . . . 6 6 26 18 Impact 3 | . . . . . . 2 . 1 . Kinetic 50 | . . . . . . 4 6 24 16 Secondary 3 | . . . . . . . . 1 2 Self-Inflicted Damage 23 | . . . 23 . . . . . . Shots 1 | . . . 1 . . . . . . Rammed 44 | . 2 . 16 . 3 4 4 9 6 Targets Rammed 50 | . 3 . 17 . 3 5 5 10 7 Kicked . | . . . . . . . . . . Crushed 6 | . 1 . 1 . . 1 1 1 1 Highest Temperature 322 | . 12 155 247 146 226 290 207 322 282 Average Temperature 70 | . 7 43 57 30 56 73 90 97 63 Received Heat Transfer 2266 | . 72 81 531 9 40 480 64 386 603 Effects 3 | . . . . . . . . 1 2 Energy Bleed 2 | . . . . . . . . 1 1 Interference 1 | . . . . . . . . . 1 Siege Activations 24 | . . . . . . 6 . 4 14 Total Turns 462 | . . . . . . 64 . 64 334 Longest Duration 61 | . . . . . . 20 . 20 61 Robots Corrupted . | . . . . . . . . . . Combat Hostiles . | . . . . . . . . . . Parts Fried 1 | . . . . . . . 1 . . Impact Corruptions 2 | . . . . . . . 1 . 1 Robots Melted . | . . . . . . . . . . Combat Hostiles . | . . . . . . . . . . Parts Melted 5 | . . . . . . 3 . . 2 Heat Transferred 518 | . . . . . . . . . 518 Parts Sabotaged 5 | . . . . . . . . . 5 Parts Stolen . | . . . . . . . . . . Parts Stripped . | . . . . . . . . . . Power Chain Reactions . | . . . . . . . . . . Alert | -11 -10 -9 -8 -7 -6 -5 -4 -3 -2 ------- Run | Yrd Mat Mat Mat Fac Fac Fac Fac Res Res Peak Influence 1601 | 30 245 234 431 183 142 200 256 1008 1601 Initial 567 | . 19 . 20 130 21 . 98 69 567 Average 203 | 17 76 91 206 83 43 40 118 259 866 Maximum Alert Level 5 | . 1 1 2 . . 1 1 3 5 Low Security (%) 72 | 100 89 97 44 100 100 99 80 62 . Level 1 13 | . 10 2 50 . . . 19 20 . Level 2 6 | . . . 4 . . . . 7 43 Level 3 5 | . . . . . . . . 10 33 Level 4 2 | . . . . . . . . . 22 Level 5 . | . . . . . . . . . . High Security . | . . . . . . . . . . Max Security . | . . . . . . . . . . Squads Dispatched 38 | . 2 . . 2 4 8 1 7 14 Investigation 1 | . 1 . . . . . . . . Extermination 17 | . . . . 2 2 2 1 5 5 Reinforcement 14 | . 1 . . . 2 6 . . 5 Assault 6 | . . . . . . . . 2 4 Garrison . | . . . . . . . . . . Intercept . | . . . . . . . . . . Searches Triggered . | . . . . . . . . . . Construction Impeded 4 | . . . . . . . . . 4 Haulers Reinforced 2 | . . . . . . 2 . . . Active Scanning Responses . | . . . . . . . . . . Cargo Convoy Interrupts . | . . . . . . . . . . Stealth | -11 -10 -9 -8 -7 -6 -5 -4 -3 -2 --------- Run | Yrd Mat Mat Mat Fac Fac Fac Fac Res Res Distress Signals 12 | . 3 1 2 . 1 1 . 2 2 Communications Jammed 104 | . . . . . . 3 1 59 41 Distress Signals 102 | . . . . . . 2 1 58 41 Times Spotted 270 | . 26 15 28 12 14 17 12 71 75 Peak Tracking Total 8 | . 6 3 8 3 4 3 5 8 8 Tactical Retreats 15 | . 2 1 . . . 1 . 8 3 Traps | -11 -10 -9 -8 -7 -6 -5 -4 -3 -2 ------- Run | Yrd Mat Mat Mat Fac Fac Fac Fac Res Res Traps Triggered 13 | . 1 . . 2 1 . . 9 . Indirectly . | . . . . . . . . . . Trap Hack Attempts . | . . . . . . . . . . Triggered . | . . . . . . . . . . Disarmed . | . . . . . . . . . . Reprogrammed . | . . . . . . . . . . Reused . | . . . . . . . . . . Traps Extracted . | . . . . . . . . . . Installed . | . . . . . . . . . . Triggered . | . . . . . . . . . . Machines | -11 -10 -9 -8 -7 -6 -5 -4 -3 -2 ---------- Run | Yrd Mat Mat Mat Fac Fac Fac Fac Res Res Machines Disabled 9 | . . 1 4 1 2 . . . 1 Max in Single Turn 1 | . . 1 1 1 1 . . . 1 Machines Repaired . | . . . . . . . . . . Machines Dismantled . | . . . . . . . . . . Machines Sabotaged . | . . . . . . . . . . Overloaded Fab Kills . | . . . . . . . . . . Hacking | -11 -10 -9 -8 -7 -6 -5 -4 -3 -2 --------- Run | Yrd Mat Mat Mat Fac Fac Fac Fac Res Res Machines Accessed 41 | . 8 3 5 8 9 1 2 4 1 Terminals 23 | . 6 2 1 3 5 1 . 4 1 Fabricators 2 | . . . . 1 1 . . . . Repair Stations 6 | . . . 2 1 1 . 2 . . Recycling Units 8 | . 2 1 2 1 2 . . . . Scanalyzers . | . . . . . . . . . . Garrison Access 2 | . . . . 2 . . . . . Total Hacks 92 | . 17 10 14 21 17 3 5 4 1 Successful 38 | . 7 4 10 6 5 1 4 1 . Failed 54 | . 10 6 4 15 12 2 1 3 1 Catastrophic 15 | . 3 . . 4 5 . . 2 1 Database Lockouts . | . . . . . . . . . . Manual 17 | . 9 4 . . 1 3 . . . Terminals 50 | . 14 9 1 10 8 3 . 4 1 Fabricators 4 | . . . . 2 2 . . . . Repair Stations 26 | . . . 11 6 4 . 5 . . Recycling Units 10 | . 3 1 2 1 3 . . . . Scanalyzers . | . . . . . . . . . . Garrison Access 2 | . . . . 2 . . . . . Terminal Hacks 15 | . 5 4 . 2 2 1 . 1 . Robot Analysis 4 | . 3 1 . . . . . . . Prototype ID Bank 6 | . 2 2 . 1 1 . . . . Branch Access Points 1 | . . . . . . 1 . . . Terminal Index 1 | . . . . . 1 . . . . Unreport Threat 1 | . . . . 1 . . . . . Hauler Manifests 1 | . . 1 . . . . . . . Zone Layout 1 | . . . . . . . . 1 . Fabricator Hacks 1 | . . . . . 1 . . . . Network Status 1 | . . . . . 1 . . . . Repair Station Hacks 18 | . . . 8 4 2 . 4 . . Scan Component 10 | . . . 5 2 1 . 2 . . Repair 8 | . . . 3 2 1 . 2 . . Recycling Unit Hacks 4 | . 2 . 2 . . . . . . Retrieve Components 4 | . 2 . 2 . . . . . . Scanalyzer . | . . . . . . . . . . Garrison Access Hacks . | . . . . . . . . . . Unauthorized Hacks . | . . . . . . . . . . Terminals . | . . . . . . . . . . Fabricators . | . . . . . . . . . . Repair Stations . | . . . . . . . . . . Recycling Units . | . . . . . . . . . . Scanalyzers . | . . . . . . . . . . Garrison Access . | . . . . . . . . . . Data Cores Recovered 1 | . . . . 1 . . . . . Used . | . . . . . . . . . . Hacking Detections 36 | . 6 3 3 8 8 1 2 4 1 Full Trace Events 1 | . 1 . . . . . . . . Feedback Events . | . . . . . . . . . . Feedback Blocked . | . . . . . . . . . . Robot Schematics Acquired . | . . . . . . . . . . Robots Built . | . . . . . . . . . . Authchips . | . . . . . . . . . . Time . | . . . . . . . . . . Total Robot Build Rating . | . . . . . . . . . . Part Schematics Acquired . | . . . . . . . . . . Parts Built . | . . . . . . . . . . Authchips . | . . . . . . . . . . Time . | . . . . . . . . . . Total Part Build Rating . | . . . . . . . . . . Parts Repaired 8 | . . . 3 2 1 . 2 . . Time 298 | . . . 96 70 38 . 94 . . Parts Recycled . | . . . . . . . . . . Recycled Matter . | . . . . . . . . . . Retrieved Matter . | . . . . . . . . . . Retrieved Components 32 | . 20 . 12 . . . . . . Parts Scanalyzed . | . . . . . . . . . . Part Schematics Acquired . | . . . . . . . . . . Parts Damaged . | . . . . . . . . . . Bothacking | -11 -10 -9 -8 -7 -6 -5 -4 -3 -2 ------------ Run | Yrd Mat Mat Mat Fac Fac Fac Fac Res Res Used RIF Installer . | . . . . . . . . . . Robots Hacked 2 | . . . . 1 1 . . . . Non-combat 2 | . . . . 1 1 . . . . Combat . | . . . . . . . . . . Robot Hacks Applied 2 | . . . . 1 1 . . . . find_chute 2 | . . . . 1 1 . . . . Relay Couplers Released . | . . . . . . . . . . Fabnet Peak Effective % . | . . . . . . . . . . Robots Rewired . | . . . . . . . . . . Allies Hacked . | . . . . . . . . . . Hacks Repelled . | . . . . . . . . . . Allies | -11 -10 -9 -8 -7 -6 -5 -4 -3 -2 -------- Run | Yrd Mat Mat Mat Fac Fac Fac Fac Res Res Total Allies . | . . . . . . . . . . Largest Group . | . . . . . . . . . . Highest-Rated Group . | . . . . . . . . . . Highest-Rated Ally . | . . . . . . . . . . Total Orders 27 | . . . . . 6 9 4 . 8 EXPLORE 21 | . . . . . 4 7 4 . 6 RETURN 6 | . . . . . 2 2 . . 2 Ally Attacks . | . . . . . . . . . . Total Damage . | . . . . . . . . . . Kills . | . . . . . . . . . . Allies Corrupted 1 | . . . . . 1 . . . . Allies Melted . | . . . . . . . . . . Intel | -11 -10 -9 -8 -7 -6 -5 -4 -3 -2 ------- Run | Yrd Mat Mat Mat Fac Fac Fac Fac Res Res Robot Analysis Total 4 | . 3 1 . . . . . . . Derelict Logs Recovered . | . . . . . . . . . . Drone Launches 22 | . . . . . 4 7 4 . 7 Drone Recoveries 14 | . . . . . 2 5 1 . 6 Exploration | -11 -10 -9 -8 -7 -6 -5 -4 -3 -2 ------------- Run | Yrd Mat Mat Mat Fac Fac Fac Fac Res Res Turns Passed 14757 | 118 1645 1213 2161 1318 1757 1735 726 2580 1504 Spaces Moved 5894 | 27 650 434 731 704 674 778 299 1148 449 Core . | . . . . . . . . . . Treads 5894 | 27 650 434 731 704 674 778 299 1148 449 Legs . | . . . . . . . . . . Wheels . | . . . . . . . . . . Hover . | . . . . . . . . . . Flight . | . . . . . . . . . . Fastest Speed 160 | 160 160 240 240 160 160 160 162 164 168 Average Speed 182 | 160 197 240 240 160 160 162 164 166 172 Slowest Speed 245 | 160 240 240 240 160 160 240 242 245 180 Overloaded Moves . | . . . . . . . . . . Propulsion Burnouts . | . . . . . . . . . . Robots Hopped . | . . . . . . . . . . Cave-ins Triggered . | . . . . . . . . . . Exploration Rate (%) 30 | 4 85 38 48 24 19 23 11 33 21 Regions Visited 9 Branch Regions . Pre-discovered Areas . | . . . . . . . . . . Known Exits Taken 2 | . . . . . 1 . 1 . . Unknown Exits Taken 7 | 1 1 1 1 1 . 1 . 1 . Scrap Searched . | . . . . . . . . . . Spaces Dug 25 | . . . . . . 1 . 3 21 Terrain Destroyed 136 | . . . 23 17 . 6 4 11 75 Melee . | . . . . . . . . . . Projectile 55 | . . . . . . . . 7 48 AOE 61 | . . . 23 17 . . . . 21 Terrain Rammed . | . . . . . . . . . . Walls Destroyed . | . . . . . . . . . . Machines Disabled . | . . . . . . . . . . Actions | -11 -10 -9 -8 -7 -6 -5 -4 -3 -2 --------- Run | Yrd Mat Mat Mat Fac Fac Fac Fac Res Res Total 8707 | 84 887 550 1001 856 1244 1118 480 1588 899 Wait 1402 | 39 138 29 129 76 448 142 113 147 141 Move 5885 | 26 649 433 730 703 673 777 298 1147 449 Hop . | . . . . . . . . . . Pick Up 138 | 1 19 16 11 11 13 23 6 17 21 Fast Attach 64 | 1 . 5 5 5 3 7 3 23 12 Attach 71 | 2 1 3 7 2 4 12 6 12 22 Detach 13 | . . . 2 . 1 3 2 4 1 Swap 265 | . 2 6 12 18 23 32 14 84 74 Drop 156 | 4 4 21 16 16 12 27 4 32 20 Fire 661 | 11 71 37 72 24 63 90 29 112 152 Melee 2 | . . . . 1 1 . . . . Ram . | . . . . . . . . . . Kick . | . . . . . . . . . . Crush 50 | . 3 . 17 . 3 5 5 10 7 Escape Stasis . | . . . . . . . . . . Rewire . | . . . . . . . . . . Trap . | . . . . . . . . . . Miscellaneous . | . . . . . . . . . . Route ------- -11/Scrapyard -10/Materials (discovered 3 exits: *Mat x2 / [*Min]) -9/Materials (discovered 2 exits: *Mat / [*Min]) -8/Materials (discovered 2 exits: *Fac / [*Sto]) -7/Factory -6/Factory (discovered 2 exits: *Fac / *Low) -5/Factory (discovered 3 exits: *Fac / Upp x2) -4/Factory (discovered 2 exits: *Res / [*Upp]) -3/Research (discovered 2 exits: *Res / *Qua) -2/Research History --------- Turn | Location | Event 14 | -11/Scrapyard | Discovered new exit (range 3) 119 | -11/Scrapyard | Entered Materials 310 | -10/Materials | Build established: Mutant 549 | -10/Materials | Discovered new exit (range 12) 923 | -10/Materials | Discovered new exit (range 13) 1115 | -10/Materials | Discovered new exit (range 5) 1304 | -10/Materials | Core integrity fell below 50% 1764 | -10/Materials | Entered another Materials area 1764 | -9/Materials | Evolved 2 slots: Utility x1, Weapon x1 2056 | -9/Materials | Build established: Gunner 2119 | -9/Materials | Discovered new exit (range 13) 2586 | -9/Materials | Build established: Tank 2792 | -9/Materials | Discovered new exit (range 16) 2977 | -9/Materials | Entered another Materials area 2977 | -8/Materials | Evolved 2 slots: Propulsion x1, Utility x1 3241 | -8/Materials | Repaired Mni. Grenade Launcher 3338 | -8/Materials | Build established: Scavenger-Tank 3831 | -8/Materials | Repaired Autogun 3864 | -8/Materials | Repaired Autogun 3890 | -8/Materials | Discovered new exit (range 19) 4858 | -8/Materials | Discovered new exit (range 16) 5138 | -8/Materials | Entered Factory 5138 | -7/Factory | Evolved 2 slots: Propulsion x1, Utility x1 5604 | -7/Factory | Build established: Gunner 5889 | -7/Factory | Repaired Autogun 5929 | -7/Factory | Repaired Minigun 6383 | -7/Factory | Discovered new exit (range 18) 6456 | -7/Factory | Entered another Factory area 6456 | -6/Factory | Evolved 2 slots: Utility x1, Weapon x1 6734 | -6/Factory | Discovered new exit (range 37) 6811 | -6/Factory | Identified exit to Lower Caves 7295 | -6/Factory | Repaired Hrd. Medium Armor Plating 7519 | -6/Factory | Discovered new exit (range 13) 7630 | -6/Factory | Identified exit to Factory 8213 | -6/Factory | Entered another Factory area 8213 | -5/Factory | Evolved 2 slots: Utility x2 8235 | -5/Factory | Build established: Scavenger-Gunner 8654 | -5/Factory | Build established: Scavenger-Tank 9078 | -5/Factory | Discovered new exit (range 52) 9364 | -5/Factory | Identified exit to Upper Caves 9877 | -5/Factory | Lost 3 parts (1n2u) 9948 | -5/Factory | Entered another Factory area 9948 | -4/Factory | Evolved 2 slots: Power x1, Utility x1 9960 | -4/Factory | Discovered new exit (range 14) 9973 | -4/Factory | Discovered new exit (range 22) 10017 | -4/Factory | Repaired Imp. Heavy Armor Plating 10097 | -4/Factory | Repaired Gauss Rifle 10136 | -4/Factory | Build established: Scavenger-Gunner 10664 | -4/Factory | Identified exit to Research 10674 | -4/Factory | Entered Research 10674 | -3/Research | Evolved 2 slots: Propulsion x1, Utility x1 10952 | -3/Research | Build established: Scavenger-Tank 11582 | -3/Research | Discovered new exit (range 4) 11679 | -3/Research | Build established: Scavenger-Skirmisher 12132 | -3/Research | Identified exit to Quarantine 12932 | -3/Research | Found Fusion Bomb Launcher 12950 | -3/Research | First assault squad dispatched 13001 | -3/Research | System corruption reached 10% 13127 | -3/Research | Discovered new exit (range 21) 13202 | -3/Research | Lost 3 parts (1p1u1w) 13254 | -3/Research | Entered another Research area 13254 | -2/Research | Evolved 2 slots: Propulsion x1, Weapon x1 13554 | -2/Research | First assault squad dispatched 14079 | -2/Research | Destroyed 7 combat bots 14303 | -2/Research | Spotted B-90 Cyclops 14520 | -2/Research | System corruption reached 10% 14564 | -2/Research | Destroyed 8 combat bots 14674 | -2/Research | Destroyed 12 combat bots 14679 | -2/Research | Lost 7 parts (1p1n2u3w) 14758 | -2/Research | Self-destructed Last Messages --------------- 14747_ Adv. Heat Sink destroyed. 14747_ R-10 Processor collects Imp. Antigrav System. 14749_ Slug penetrates G-73 Enforcer. 14749_ Destroyed Flexi-carbon Leg. 14749_ KE Penetrator destroyed. 14752_ Penetrated by Slug. 14753_ Lgt. Quantum Reactor destroyed. 14753_ Imp. Shield Generator destroyed. 14753_ Railgun destroyed. 14753_ L-61 Swordsman destroyed. 14753_ Slug penetrates Wall. 14754_ Acquired 85 matter. 14754_ ALERT: Rogue bot located, Programmers report to Research Zone 8C. 14755_ Penetrated by Slug. 14756_ L-61 Swordsman knocked back. 14756_ ALERT: Construction progress impeded, dispatching reinforcements to local area. 14758_ Penetrated by Slug. Map ----- +----------------------------------------------------+ | # #############?##### ? # ??????????????? | | # ####?#### ######### ? # ?????????????? | | ################### # ? ????????????? | | # ################### ? # ????????????? | | # # ######### ? # ???? ??????????? | | # # #####?######?#####?####?#?????????? | | # # """ ###?################?##???????????? | | # # """ ########################??????????? | | # / """! #############?########?#???#??????? | | # !# "%% ###################??##???????????? | | # # ########?###############?###?#????? | | # % ########################?##???????? | | T ######################?###########?#?###????? | | # # # " "" ##?##???######?###?????? | | # =# # ! ""T"" #########?#?###????#? ?? | | # ### #####?####?#?##??#?##?## | | # # # """ ############?##??#????? | | # ### """ = ###?###;#############?? | | # ### """ ! ###?## # #??? | | # ### !=* ##### ## # ?" | | # ### [ |= #### ### #??? | | # ##########R#+###########;#### """ # ?" | | %=* !==![!! + """" #??? | | w !=! /==%=u%[! # """" #??? | | |%= ! = !%!l[gh%!% + """ #??? | | !! % %!!!=*=% ![[@=g%=%! # #?## | | ##+#####![=[####+############!u # #??? | | != # # %! ####= # ##?? | | *! # # [ #### # #?## | | " "" # / #### # ##?# | | """" + # ] + ##############??? | | """" # # #### #? ? #?##?##???? | | # ################# # ? ##?##?#?#?? | | # #############?### # ??#?#?#?????# | | """" # # ###########?#?# # ?? ?#?##?##???? | | """" # ################# #??? ?##????##??? | | """" # !! # ?? ?#?#?##????? | | # !! #? ? ? ?? ?? ? | | [ # ! # ? #? ?? ????? | | ######## # ??#?????????? | | # ###+###### ##? ?? ?????"????? | | # #?? ## ! ##? ? ?## ??????? | | # # ## ##?#??#?? ???????? | | # # ? ## ?? ? ?????????? | | = # # + ! ?? ?#????????? | | # + ## ?? ????????????? | | [ + # ? ## ? ??? ?????????? | | ! ## ### ?? ?########+###????????????????? | | ######### ### ?####?#??? ??????????????????? | | #?####### ### ?? ##???? ??????????????????????? | +----------------------------------------------------+ Best States ------------- Heat Dissipation 118 Coolant Potential 50 Energy Generation 45 Energy Capacity 440 Matter Stores 300 Matter Capacity 300 Sight Range 22 Terrain Scan Range 24 Terrain Scan Density 210 Jamming Range 14 Armor Coverage 1200 Utility Shielding 66 Weapon Cycling 25 Evasion (%) 40 Targeting Accuracy 8 Recoil Reduction 6 Salvage Targeting 2 Defensive Hacking 14 Item Schematics ----------------- None Robot Schematics ------------------ None Fabricated ------------ Nothing Alien Tech Used ----------------- None Achievements -------------- None Challenges ------------ None Game ------ Seed AuthchipXenonBroadsword Manual? 0 Play Time 01:58:43 Cumulative 1066.7 hours Start 2024.09.08 @ 14:31:36 End 2024.09.08 @ 16:27:37 Sessions 1 Manual Loads 0 Difficulty Rogue Special Mode None Game No. 492 Rogue 491 Adventurer 1 Explorer 0 Win Type - Total 171 Types 50/13/28/5/2/1/67/3/2 Lore% 93 Gallery% 99 Achievement% 93 Wizard Run 0 Options --------- Layout 2 ASCII 0 Keyboard 1 Movement Numpad Keybinds 0 Fullscreen 0 Font 24/Terminus Map View 50x44 Zoom Use 0% Tactical HUD 1 Map Filters NONE Filters NONE Steam 1 RUN: 47264c01-80f4-4061-8e99-6eb229ad28bc